[Event "AUT-ch 2018"]
[Site "Vienna"]
[Date "2018.07.24"]
[Round "4"]
[White "Morgunov, Daniel"]
[Black "Schnegg, Anna-Lena"]
[Result "1-0"]
[ECO "B38"]
[WhiteElo "2346"]
[BlackElo "2175"]
[Annotator "NA"]
[PlyCount "57"]
[EventDate "2018.07.22"]
[EventType "swiss"]
[EventCountry "AUT"]
[SourceTitle "playchess.com"]
[Source "ChessBase"]
[SourceQuality "1"]
[TimeControl "40/5400+30:1800+30"]

1. e4 {[%emt 0:00:00]} c5 {[%emt 0:00:05]} 2. Nf3 {[%emt 0:00:00]} Nc6 {[%emt 0:00:06]} 3. d4 {[%emt 0:00:00]} cxd4 {[%emt 0:00:07]} 4. Nxd4 {[%emt 0:00:00]} g6 {[%emt 0:00:11]} 5. c4 {[%emt 0:00:00]} Bg7 {[%emt 0:00:09]} 6. Be3 {[%emt 0:00:16]} d6 {[%emt 0:00:28]} 7. Nc3 {[%emt 0:00:11]} Nf6 {[%emt 0:00:14]} 8. f3 {[%emt 0:00:19]} O-O {[%emt 0:00:14]} 9. Qd2 {[%emt 0:01:19]} Bd7 {[%emt 0:00:52]} 10. Rc1 {[%emt 0:07:03]} Nxd4 {[%emt 0:02:38]} 11. Bxd4 {[%emt 0:00:12]} Bc6 {[%emt 0:00:48]} 12. Be2 {[%emt 0:03:53]} Nd7 {[%emt 0:04:10]} 13. Be3 {[%emt 0:03:45]} a5 {[%emt 0:02:54]} 14. b3 {[%emt 0:02:10]} Nc5 {[%emt 0:02:43]} 15. O-O {[%emt 0:02:06]} Be5 {[%emt 0:04:36]} 16. Rfd1 {[%emt 0:14:17]} e6 {[%emt 0:13:13]} 17. Qe1 {[%emt 0:10:33]} Qe7 {[%emt 0:04:19]} 18. Rc2 {[%emt 0:06:05]} Rad8 {[%emt 0:11:01]} 19. Rb1 {[%emt 0:05:57]} f5 {[%emt 0:17:20]} 20. exf5 {[%emt 0:01:55]} exf5 {[%emt 0:00:44]} 21. Bf1 {[%emt 0:05:42]} Rfe8 {[%emt 0:08:50]} 22. Bf2 {[%emt 0:04:53]} Qg5 {[%emt 0:06:15]} 23. Qc1 {[%emt 0:06:45]} Bf4 {[%emt 0:02:43]} 24. Qd1 {[%emt 0:00:12]} Qh5 {[%emt 0:07:42]} 25. h3 {[%emt 0:01:32]} Qg5 {[%emt 0:02:58]} 26. Nd5 {[%emt 0:02:11]} Re5 {[%emt 0:03:32]} 27. h4 {[%emt 0:05:41]} Qh6 {[%emt 0:00:43]} 28. g3 {[%emt 0:00:52]} Re3 {[%emt 0:03:17]} 29. gxf4 {[%emt 0:01:07]} 1-0

[Event "AUT-ch 2018"]
[Site "Vienna"]
[Date "2018.07.24"]
[Round "4"]
[White "Neumeier, Klaus"]
[Black "Atzl, Florian"]
[Result "1-0"]
[ECO "A05"]
[WhiteElo "2284"]
[BlackElo "2117"]
[Annotator "NA"]
[PlyCount "47"]
[EventDate "2018.07.22"]
[EventType "swiss"]
[EventCountry "AUT"]
[SourceTitle "playchess.com"]
[Source "ChessBase"]
[SourceQuality "1"]
[TimeControl "40/5400+30:1800+30"]

1. Nf3 {[%emt 0:00:00]} Nf6 {[%emt 0:00:08]} 2. c4 {[%emt 0:00:00]} c5 {[%emt 0:00:09]} 3. g3 {[%emt 0:00:33]} Nc6 {[%emt 0:00:12]} 4. Bg2 {[%emt 0:00:32]} d5 {[%emt 0:00:08]} 5. cxd5 {[%emt 0:00:26]} Nxd5 {[%emt 0:00:10]} 6. Nc3 {[%emt 0:00:28]} Nc7 {[%emt 0:00:08]} 7. O-O {[%emt 0:00:21]} e5 {[%emt 0:00:05]} 8. a3 {[%emt 0:06:47]} f6 {[%emt 0:00:07]} 9. e3 {[%emt 0:00:22]} Be7 {[%emt 0:01:09]} 10. d4 {[%emt 0:00:26]} cxd4 {[%emt 0:00:08]} 11. exd4 {[%emt 0:00:09]} exd4 {[%emt 0:00:07]} 12. Ne2 {[%emt 0:00:11]} Ne6 {[%emt 0:00:08]} 13. b4 {[%emt 0:01:27]} O-O {[%emt 0:05:22]} 14. Bb2 {[%emt 0:05:38]} d3 {[%emt 0:00:54]} 15. Nc1 {[%emt 0:00:06]} Qb6 {[%emt 0:01:43]} 16. Nxd3 {[%emt 0:02:02]} a5 {[%emt 0:06:00]} 17. Rb1 {[%emt 0:13:20]} axb4 {[%emt 0:01:55]} 18. axb4 {[%emt 0:00:36]} Kh8 {[%emt 0:00:07]} 19. b5 {[%emt 0:15:11]} Na5 {[%emt 0:03:38]} 20. Nh4 {[%emt 0:07:14]} Ng5 {[%emt 0:17:14]} 21. Nf4 {[%emt 0:03:21]} Kg8 {[%emt 0:16:35]} 22. Bd5+ {[%emt 0:08:02]} Nf7 {[%emt 0:00:09]} 23. Qh5 {[%emt 0:04:53]} Bd8 {[%emt 0:02:42]} 24. Ba3 1-0

[Event "AUT-ch 2018"]
[Site "Vienna"]
[Date "2018.07.24"]
[Round "4"]
[White "Gelbenegger, Patrick"]
[Black "Wagner, Leopold Franziskus"]
[Result "1-0"]
[ECO "B13"]
[WhiteElo "2260"]
[BlackElo "2108"]
[Annotator "NA"]
[PlyCount "121"]
[EventDate "2018.07.22"]
[EventType "swiss"]
[EventCountry "AUT"]
[SourceTitle "playchess.com"]
[Source "ChessBase"]
[SourceQuality "1"]
[TimeControl "40/5400+30:1800+30"]

1. e4 {[%emt 0:00:00]} c6 {[%emt 0:00:05]} 2. d4 {[%emt 0:00:00]} d5 {[%emt 0:00:03]} 3. exd5 {[%emt 0:00:00]} cxd5 {[%emt 0:00:07]} 4. Bd3 {[%emt 0:00:21]} Nc6 {[%emt 0:00:07]} 5. c3 {[%emt 0:00:05]} Qc7 {[%emt 0:00:02]} 6. h3 {[%emt 0:00:12]} e6 {[%emt 0:01:56]} 7. Nf3 {[%emt 0:01:21]} Bd6 {[%emt 0:00:14]} 8. Nbd2 {[%emt 0:02:45]} Nge7 {[%emt 0:00:49]} 9. O-O {[%emt 0:14:53]} Ng6 {[%emt 0:01:33]} 10. Re1 {[%emt 0:04:14]} O-O {[%emt 0:06:17]} 11. Nf1 {[%emt 0:04:22]} Nce7 {[%emt 0:07:13]} 12. Bc2 {[%emt 0:13:16]} h6 {[%emt 0:05:33]} 13. Qd3 {[%emt 0:05:28]} f5 {[%emt 0:01:48]} 14. Bb3 {[%emt 0:07:50]} a5 {[%emt 0:04:13]} 15. a4 {[%emt 0:03:54]} b6 {[%emt 0:02:05]} 16. Bd2 {[%emt 0:07:43]} Ba6 {[%emt 0:00:39]} 17. Qc2 {[%emt 0:02:25]} Rf6 {[%emt 0:02:02]} 18. h4 {[%emt 0:06:51]} Rc8 {[%emt 0:02:48]} 19. h5 {[%emt 0:04:27]} Nf4 {[%emt 0:01:22]} 20. Ne5 {[%emt 0:03:19]} Nxh5 {[%emt 0:01:26]} 21. Qd1 {[%emt 0:01:06]} g6 {[%emt 0:04:15]} 22. Bxh6 {[%emt 0:01:19]} Bxf1 {[%emt 0:01:21]} 23. Kxf1 {[%emt 0:01:17]} Bxe5 {[%emt 0:00:44]} 24. Rxe5 {[%emt 0:05:59]} Nc6 {[%emt 0:00:47]} 25. Re3 {[%emt 0:00:18]} f4 {[%emt 0:01:31]} 26. Rh3 {[%emt 0:05:26]} f3 {[%emt 0:04:48]} 27. Rxf3 {[%emt 0:01:30]} Qh2 {[%emt 0:01:37]} 28. Rxf6 {[%emt 0:00:33]} Nxf6 {[%emt 0:00:34]} 29. Be3 {[%emt 0:00:24]} Qh1+ {[%emt 0:02:20]} 30. Ke2 {[%emt 0:00:05]} Qxg2 {[%emt 0:00:04]} 31. Qg1 {[%emt 0:00:43]} Qe4 {[%emt 0:00:43]} 32. Qh1 {[%emt 0:01:44]} Qf5 {[%emt 0:00:37]} 33. Qf3 {[%emt 0:01:11]} Kf7 {[%emt 0:02:46]} 34. Qxf5 {[%emt 0:00:07]} gxf5 {[%emt 0:00:15]} 35. Bf4 {[%emt 0:00:43]} Nh5 {[%emt 0:00:25]} 36. Bd6 {[%emt 0:00:29]} Rd8 {[%emt 0:00:49]} 37. Bc7 {[%emt 0:01:01]} Rd7 {[%emt 0:00:20]} 38. Bh2 {[%emt 0:00:15]} Kf6 {[%emt 0:01:32]} 39. Rh1 {[%emt 0:00:58]} Rh7 {[%emt 0:00:27]} 40. Kf3 {[%emt 0:00:42]} Kg6 {[%emt 0:33:30]} 41. Rg1+ {[%emt 0:07:02]} Kf7 {[%emt 0:00:00]} 42. Bc2 {[%emt 0:07:34]} Nf6 {[%emt 0:00:00]} 43. Bf4 {[%emt 0:03:39]} Ne7 {[%emt 0:00:00]} 44. Bd3 {[%emt 0:05:48]} Ne4 {[%emt 0:00:00]} 45. Ke3 {[%emt 0:03:25]} Nc8 {[%emt 0:00:00]} 46. f3 {[%emt 0:01:38]} Ned6 {[%emt 0:00:00]} 47. b3 {[%emt 0:01:46]} Ke7 {[%emt 0:00:00]} 48. Rg8 {[%emt 0:01:41]} Kd7 {[%emt 0:00:00]} 49. c4 {[%emt 0:00:53]} Kc6 {[%emt 0:00:00]} 50. Rg6 {[%emt 0:01:23]} Re7 {[%emt 0:00:00]} 51. Rg8 {[%emt 0:00:20]} Kd7 {[%emt 0:00:00]} 52. c5 {[%emt 0:00:38]} bxc5 {[%emt 0:00:00]} 53. dxc5 {[%emt 0:00:26]} e5 {[%emt 0:00:00]} 54. Bg5 {[%emt 0:00:17]} f4+ {[%emt 0:00:00]} 55. Kd2 {[%emt 0:00:20]} Nf7 {[%emt 0:03:48]} 56. Bb5+ {[%emt 0:00:59]} Ke6 {[%emt 0:00:25]} 57. Bxe7 {[%emt 0:00:42]} Nxe7 {[%emt 0:00:07]} 58. Ra8 {[%emt 0:00:18]} e4 {[%emt 0:00:32]} 59. fxe4 {[%emt 0:00:08]} dxe4 {[%emt 0:00:07]} 60. Bc4+ {[%emt 0:00:17]} Kf5 {[%emt 0:02:20]} 61. Rf8 {[%emt 0:00:35]} 1-0

[Event "AUT-ch 2018"]
[Site "Vienna"]
[Date "2018.07.24"]
[Round "4"]
[White "Schmidlechner, Alexander"]
[Black "Steiner, Adam"]
[Result "0-1"]
[ECO "A06"]
[WhiteElo "2226"]
[BlackElo "2174"]
[Annotator "NA"]
[PlyCount "134"]
[EventDate "2018.07.22"]
[EventType "swiss"]
[EventCountry "AUT"]
[SourceTitle "playchess.com"]
[Source "ChessBase"]
[SourceQuality "1"]
[TimeControl "40/5400+30:1800+30"]

1. Nf3 {[%emt 0:00:00]} d5 {[%emt 0:00:08]} 2. e3 {[%emt 0:00:00]} Nc6 {[%emt 0:04:56]} 3. b3 {[%emt 0:01:08]} e5 {[%emt 0:01:19]} 4. Bb2 {[%emt 0:00:40]} e4 {[%emt 0:02:46]} 5. Nd4 {[%emt 0:00:35]} Nxd4 {[%emt 0:01:59]} 6. Bxd4 {[%emt 0:00:07]} Nf6 {[%emt 0:10:22]} 7. Be2 {[%emt 0:01:40]} Be7 {[%emt 0:06:54]} 8. d3 {[%emt 0:16:27]} O-O {[%emt 0:02:19]} 9. O-O {[%emt 0:00:31]} Bf5 {[%emt 0:08:11]} 10. Nd2 {[%emt 0:10:48]} Qd7 {[%emt 0:05:02]} 11. dxe4 {[%emt 0:07:38]} dxe4 {[%emt 0:04:07]} 12. Nc4 {[%emt 0:01:29]} Rad8 {[%emt 0:06:17]} 13. Qc1 {[%emt 0:04:16]} c5 {[%emt 0:02:24]} 14. Bb2 {[%emt 0:03:07]} Qe6 {[%emt 0:03:40]} 15. Rd1 {[%emt 0:05:07]} Rxd1+ {[%emt 0:08:15]} 16. Qxd1 {[%emt 0:00:20]} Rd8 {[%emt 0:00:02]} 17. Qe1 {[%emt 0:00:28]} b5 {[%emt 0:02:54]} 18. Nd2 {[%emt 0:00:57]} Bd6 {[%emt 0:00:58]} 19. Bxb5 {[%emt 0:14:43]} Bh3 {[%emt 0:17:11]} 20. Bf1 {[%emt 0:17:25]} Qg4 {[%emt 0:03:37]} 21. Bxf6 {[%emt 0:03:48]} gxf6 {[%emt 0:00:13]} 22. f4 {[%emt 0:01:17]} exf3 {[%emt 0:02:03]} 23. Nxf3 {[%emt 0:00:10]} Qh5 {[%emt 0:03:08]} 24. Rd1 {[%emt 0:00:46]} Bg4 {[%emt 0:01:09]} 25. Rxd6 Rxd6 26. Qg3 {[%emt 0:05:59]} Rd1 {[%emt 0:00:21]} 27. h3 {[%emt 0:00:11]} f5 {[%emt 0:00:34]} 28. hxg4 {[%emt 0:00:15]} Qxg4 {[%emt 0:02:12]} 29. Qxg4+ {[%emt 0:00:59]} fxg4 {[%emt 0:00:01]} 30. Ne5 {[%emt 0:00:17]} g3 {[%emt 0:00:30]} 31. Nd3 {[%emt 0:00:46]} h5 {[%emt 0:01:23]} 32. Nxc5 {[%emt 0:00:34]} Rd2 {[%emt 0:00:34]} 33. c4 {[%emt 0:01:32]} Rxa2 {[%emt 0:00:11]} 34. b4 {[%emt 0:00:25]} Kf8 {[%emt 0:00:40]} 35. b5 {[%emt 0:00:31]} Ke7 {[%emt 0:00:20]} 36. Ne4 {[%emt 0:01:18]} h4 {[%emt 0:00:06]} 37. Ng5 {[%emt 0:01:33]} Rf2 {[%emt 0:01:39]} 38. c5 {[%emt 0:00:31]} f6 {[%emt 0:00:22]} 39. Nh3 {[%emt 0:00:26]} Rb2 {[%emt 0:00:35]} 40. Nf4 {[%emt 0:00:16]} Kd7 {[%emt 0:30:27]} 41. Bd3 {[%emt 0:05:04]} Ra2 {[%emt 0:00:00]} 42. Kf1 {[%emt 0:00:59]} Kc7 {[%emt 0:00:00]} 43. Bf5 {[%emt 0:13:54]} Kb8 {[%emt 0:00:00]} 44. Ke1 {[%emt 0:01:47]} Rb2 {[%emt 0:00:00]} 45. Bd7 {[%emt 0:00:37]} h3 {[%emt 0:00:00]} 46. Bxh3 {[%emt 0:03:10]} Rxb5 {[%emt 0:00:00]} 47. Nd3 {[%emt 0:01:32]} Kc7 {[%emt 0:00:00]} 48. Kd2 {[%emt 0:00:31]} a5 {[%emt 0:00:00]} 49. Kc2 {[%emt 0:01:28]} a4 {[%emt 0:00:00]} 50. Be6 {[%emt 0:00:41]} a3 {[%emt 0:00:25]} 51. Bc4 {[%emt 0:00:12]} Ra5 {[%emt 0:02:04]} 52. Kb1 {[%emt 0:00:10]} Kc6 {[%emt 0:00:26]} 53. Ka2 {[%emt 0:00:36]} Ra4 {[%emt 0:01:12]} 54. Bb3 {[%emt 0:00:58]} Re4 {[%emt 0:00:57]} 55. Kxa3 {[%emt 0:00:51]} Rxe3 {[%emt 0:00:01]} 56. Ba4+ {[%emt 0:00:12]} Kd5 {[%emt 0:01:13]} 57. Bb5 {[%emt 0:00:09]} f5 {[%emt 0:00:41]} 58. Kb4 {[%emt 0:00:25]} Re4+ {[%emt 0:00:40]} 59. Ka5 {[%emt 0:02:41]} f4 {[%emt 0:00:01]} 60. c6 {[%emt 0:00:46]} Kd6 {[%emt 0:01:38]} 61. Nc5 {[%emt 0:00:37]} Re7 {[%emt 0:00:43]} 62. Kb6 {[%emt 0:02:10]} f3 {[%emt 0:00:01]} 63. Ne4+ {[%emt 0:00:15]} Rxe4 {[%emt 0:00:56]} 64. c7 {[%emt 0:00:11]} fxg2 {[%emt 0:00:04]} 65. c8=Q {[%emt 0:00:16]} g1=Q+ {[%emt 0:00:03]} 66. Ka5 {[%emt 0:00:40]} Qa7+ {[%emt 0:00:20]} 67. Ba6 {[%emt 0:00:16]} Qc5+ {[%emt 0:00:14]} 0-1

[Event "AUT-ch 2018"]
[Site "Vienna"]
[Date "2018.07.24"]
[Round "4"]
[White "Khalakhan, Jurij"]
[Black "Feit, Florian"]
[Result "1-0"]
[ECO "C51"]
[WhiteElo "2215"]
[BlackElo "2012"]
[Annotator "NA"]
[PlyCount "117"]
[EventDate "2018.07.22"]
[EventType "swiss"]
[EventCountry "AUT"]
[SourceTitle "playchess.com"]
[Source "ChessBase"]
[SourceQuality "1"]
[TimeControl "40/5400+30:1800+30"]

1. e4 {[%emt 0:00:00]} e5 {[%emt 0:00:07]} 2. Nf3 {[%emt 0:00:00]} Nc6 {[%emt 0:00:03]} 3. Bc4 {[%emt 0:00:13]} Bc5 {[%emt 0:00:38]} 4. b4 {[%emt 0:00:01]} Bxb4 {[%emt 0:00:36]} 5. c3 {[%emt 0:00:01]} Be7 {[%emt 0:00:08]} 6. d4 {[%emt 0:00:10]} Na5 {[%emt 0:00:24]} 7. Be2 {[%emt 0:00:02]} exd4 {[%emt 0:04:22]} 8. Qxd4 {[%emt 0:00:02]} d5 9. O-O {[%emt 0:23:26]} dxe4 {[%emt 0:11:34]} 10. Qxe4 {[%emt 0:00:47]} Nf6 {[%emt 0:04:51]} 11. Qa4+ {[%emt 0:02:05]} c6 {[%emt 0:07:26]} 12. Rd1 {[%emt 0:01:39]} Bd7 {[%emt 0:00:37]} 13. Ne5 {[%emt 0:00:49]} b5 {[%emt 0:00:37]} 14. Qf4 {[%emt 0:08:16]} Qc7 {[%emt 0:17:37]} 15. Qg3 {[%emt 0:39:53]} Be6 {[%emt 0:10:03]} 16. Bf4 {[%emt 0:00:34]} Nd5 {[%emt 0:02:27]} 17. Rxd5 {[%emt 0:01:18]} Bxd5 {[%emt 0:07:51]} 18. Nxf7 {[%emt 0:00:45]} Bh4 {[%emt 0:09:24]} 19. Bxc7 {[%emt 0:16:58]} Bxg3 {[%emt 0:00:20]} 20. fxg3 {[%emt 0:02:01]} Kxf7 {[%emt 0:03:45]} 21. Bxa5 {[%emt 0:00:02]} Rae8 {[%emt 0:01:45]} 22. Kf2 {[%emt 0:01:08]} Re5 {[%emt 0:04:33]} 23. Nd2 {[%emt 0:00:43]} Bxg2 {[%emt 0:01:45]} 24. Bc7 {[%emt 0:00:31]} Re7 {[%emt 0:01:05]} 25. Bd6 {[%emt 0:00:26]} Re6 {[%emt 0:02:02]} 26. Bc5 {[%emt 0:00:08]} Bd5 {[%emt 0:01:20]} 27. Nb3 {[%emt 0:00:56]} Rhe8 {[%emt 0:01:20]} 28. Re1 {[%emt 0:00:35]} Rf6+ {[%emt 0:04:16]} 29. Kg1 {[%emt 0:00:01]} g6 {[%emt 0:00:45]} 30. Bd4 {[%emt 0:00:56]} Rfe6 {[%emt 0:00:23]} 31. Kf2 {[%emt 0:00:18]} Bxb3 {[%emt 0:01:38]} 32. axb3 {[%emt 0:00:03]} a5 {[%emt 0:00:20]} 33. h4 {[%emt 0:00:45]} Kf8 {[%emt 0:01:44]} 34. Bc5+ {[%emt 0:00:14]} Kg7 {[%emt 0:00:05]} 35. Bd4+ {[%emt 0:00:26]} Kh6 {[%emt 0:00:50]} 36. g4 {[%emt 0:00:01]} g5 {[%emt 0:00:07]} 37. hxg5+ {[%emt 0:01:45]} Kxg5 {[%emt 0:00:04]} 38. Kf3 {[%emt 0:00:20]} Rf8+ {[%emt 0:01:15]} 39. Kg3 {[%emt 0:00:14]} Rfe8 {[%emt 0:00:04]} 40. Kf3 {[%emt 0:00:09]} Re4 {[%emt 0:31:43]} 41. Bb6 {[%emt 0:09:47]} a4 {[%emt 0:00:00]} 42. bxa4 {[%emt 0:00:02]} bxa4 {[%emt 0:00:00]} 43. Bc5 {[%emt 0:00:05]} Rf4+ {[%emt 0:00:00]} 44. Kg3 {[%emt 0:00:23]} Rxg4+ {[%emt 0:00:00]} 45. Kf3 {[%emt 0:13:11]} Rf4+ {[%emt 0:00:00]} 46. Kg3 {[%emt 0:00:19]} h5 {[%emt 0:00:00]} 47. Ba3 {[%emt 0:01:42]} Rfe4 {[%emt 0:00:00]} 48. Bc1+ {[%emt 0:00:16]} Re3+ {[%emt 0:02:06]} 49. Kf2 {[%emt 0:00:25]} Kf4 {[%emt 0:00:53]} 50. Rh1 {[%emt 0:00:02]} a3 {[%emt 0:00:39]} 51. Rh4+ {[%emt 0:00:51]} Kf5 {[%emt 0:01:22]} 52. Bxe3 {[%emt 0:00:58]} Ra8 {[%emt 0:00:12]} 53. Rxh5+ {[%emt 0:00:20]} Kg6 {[%emt 0:00:36]} 54. Rh1 {[%emt 0:00:43]} Rf8+ {[%emt 0:00:46]} 55. Bf3 {[%emt 0:00:07]} Rb8 {[%emt 0:00:12]} 56. Bxc6 {[%emt 0:00:42]} Rb2+ {[%emt 0:00:09]} 57. Kf3 {[%emt 0:00:05]} a2 {[%emt 0:00:05]} 58. Ra1 {[%emt 0:00:02]} Rc2 {[%emt 0:00:09]} 59. Be4+ {[%emt 0:00:06]} 1-0

[Event "AUT-ch 2018"]
[Site "Vienna"]
[Date "2018.07.24"]
[Round "4"]
[White "Windhager, Hannes"]
[Black "Thoma, Wilhelm Jun"]
[Result "1-0"]
[ECO "C18"]
[WhiteElo "2203"]
[BlackElo "2203"]
[Annotator "NA"]
[PlyCount "89"]
[EventDate "2018.07.22"]
[EventType "swiss"]
[EventCountry "AUT"]
[SourceTitle "playchess.com"]
[Source "ChessBase"]
[SourceQuality "1"]
[TimeControl "40/5400+30:1800+30"]

1. e4 {[%emt 0:00:00]} e6 {[%emt 0:00:26]} 2. d4 {[%emt 0:00:00]} d5 {[%emt 0:00:05]} 3. Nc3 {[%emt 0:00:00]} Bb4 {[%emt 0:00:12]} 4. e5 {[%emt 0:00:07]} Ne7 {[%emt 0:00:16]} 5. a3 {[%emt 0:00:10]} Bxc3+ {[%emt 0:00:06]} 6. bxc3 {[%emt 0:00:04]} c5 {[%emt 0:00:16]} 7. Qg4 {[%emt 0:00:31]} Qc7 {[%emt 0:01:03]} 8. Qxg7 {[%emt 0:00:26]} Rg8 {[%emt 0:00:09]} 9. Qxh7 {[%emt 0:00:08]} cxd4 {[%emt 0:00:11]} 10. Ne2 {[%emt 0:00:39]} dxc3 {[%emt 0:00:13]} 11. f4 {[%emt 0:02:23]} Nbc6 {[%emt 0:00:13]} 12. Qd3 {[%emt 0:00:32]} d4 {[%emt 0:01:22]} 13. Nxd4 {[%emt 0:05:36]} Nxd4 {[%emt 0:00:09]} 14. Qxd4 {[%emt 0:00:06]} Bd7 {[%emt 0:00:13]} 15. Rb1 {[%emt 0:26:34]} Nf5 {[%emt 0:23:45]} 16. Qb4 {[%emt 0:09:00]} b6 {[%emt 0:09:11]} 17. a4 {[%emt 0:13:03]} Qc6 {[%emt 0:04:56]} 18. Kf2 {[%emt 0:08:07]} Rc8 {[%emt 0:08:22]} 19. Rg1 {[%emt 0:02:20]} Qxa4 {[%emt 0:02:52]} 20. Qxa4 {[%emt 0:00:09]} Bxa4 {[%emt 0:00:07]} 21. Bd3 {[%emt 0:01:32]} Ne7 {[%emt 0:06:22]} 22. h4 {[%emt 0:02:58]} Nd5 {[%emt 0:04:58]} 23. Ra1 {[%emt 0:05:35]} b5 {[%emt 0:02:06]} 24. Be3 {[%emt 0:02:26]} a5 {[%emt 0:01:15]} 25. Be4 {[%emt 0:04:14]} Rc4 {[%emt 0:07:17]} 26. Kf3 {[%emt 0:06:00]} Rxe4 {[%emt 0:08:32]} 27. Kxe4 {[%emt 0:00:07]} Bxc2+ {[%emt 0:00:08]} 28. Kd4 {[%emt 0:01:47]} Rg3 {[%emt 0:01:18]} 29. Rge1 {[%emt 0:01:55]} a4 {[%emt 0:01:12]} 30. Rac1 {[%emt 0:01:37]} Rxg2 {[%emt 0:02:09]} 31. Kc5 {[%emt 0:02:25]} b4 {[%emt 0:01:31]} 32. Ra1 {[%emt 0:01:19]} Rg3 {[%emt 0:04:17]} 33. Bc1 {[%emt 0:01:00]} Kf8 {[%emt 0:02:11]} 34. Re2 {[%emt 0:00:54]} Bd3 {[%emt 0:02:15]} 35. Rf2 {[%emt 0:00:44]} a3 {[%emt 0:02:14]} 36. f5 {[%emt 0:01:13]} Kg8 {[%emt 0:03:02]} 37. Bxa3 {[%emt 0:01:01]} bxa3 {[%emt 0:00:24]} 38. Rxa3 {[%emt 0:00:12]} c2 {[%emt 0:00:37]} 39. Rxc2 {[%emt 0:00:15]} Bxc2 {[%emt 0:03:07]} 40. Rxg3+ {[%emt 0:00:05]} Kh8 {[%emt 0:30:20]} 41. f6 {[%emt 0:31:16]} Nf4 {[%emt 0:00:00]} 42. Kd6 {[%emt 0:00:00]} Bg6 {[%emt 0:00:00]} 43. Rg4 {[%emt 0:00:00]} Nd3 {[%emt 0:00:00]} 44. Rxg6 {[%emt 0:00:00]} fxg6 {[%emt 0:00:00]} 45. f7 {[%emt 0:00:00]} 1-0

[Event "AUT-ch 2018"]
[Site "Vienna"]
[Date "2018.07.24"]
[Round "4"]
[White "Polterauer, Chiara"]
[Black "Huber, Martin Christian"]
[Result "1/2-1/2"]
[ECO "C50"]
[WhiteElo "2169"]
[BlackElo "2374"]
[Annotator "NA"]
[PlyCount "62"]
[EventDate "2018.07.22"]
[EventType "swiss"]
[EventCountry "AUT"]
[SourceTitle "playchess.com"]
[Source "ChessBase"]
[SourceQuality "1"]
[TimeControl "40/5400+30:1800+30"]

1. e4 {[%emt 0:00:00]} e5 {[%emt 0:00:30]} 2. Nf3 {[%emt 0:00:00]} Nc6 {[%emt 0:00:11]} 3. Bc4 {[%emt 0:00:00]} Nf6 {[%emt 0:01:12]} 4. d3 {[%emt 0:00:42]} Bc5 {[%emt 0:00:22]} 5. c3 {[%emt 0:00:28]} O-O {[%emt 0:00:14]} 6. Nbd2 {[%emt 0:00:40]} d5 7. exd5 {[%emt 0:00:21]} Nxd5 {[%emt 0:01:31]} 8. Ne4 {[%emt 0:00:05]} Be7 {[%emt 0:04:40]} 9. O-O {[%emt 0:00:39]} Kh8 {[%emt 0:05:47]} 10. Re1 {[%emt 0:18:34]} a6 {[%emt 0:08:29]} 11. Ng3 {[%emt 0:07:33]} f6 {[%emt 0:10:07]} 12. a4 {[%emt 0:01:05]} Be6 {[%emt 0:14:14]} 13. Ba2 {[%emt 0:13:23]} Qe8 {[%emt 0:03:44]} 14. d4 {[%emt 0:07:05]} Rd8 {[%emt 0:02:55]} 15. Qe2 {[%emt 0:00:40]} Qf7 {[%emt 0:11:22]} 16. c4 {[%emt 0:06:45]} Ndb4 {[%emt 0:00:17]} 17. d5 {[%emt 0:00:15]} Nxa2 {[%emt 0:00:23]} 18. Rxa2 {[%emt 0:00:47]} Bxd5 {[%emt 0:00:09]} 19. cxd5 {[%emt 0:00:18]} Qxd5 {[%emt 0:00:53]} 20. Ra1 {[%emt 0:01:11]} Bb4 {[%emt 0:01:27]} 21. Bd2 {[%emt 0:03:48]} Bxd2 {[%emt 0:02:17]} 22. Red1 {[%emt 0:00:04]} Nd4 {[%emt 0:00:41]} 23. Nxd4 {[%emt 0:00:57]} Qxd4 {[%emt 0:01:25]} 24. Nf1 {[%emt 0:01:59]} Qxb2 {[%emt 0:00:46]} 25. Nxd2 {[%emt 0:00:10]} Rd4 {[%emt 0:04:52]} 26. Kf1 {[%emt 0:08:51]} Rfd8 {[%emt 0:09:40]} 27. Nf3 {[%emt 0:03:58]} Qxe2+ {[%emt 0:07:03]} 28. Kxe2 {[%emt 0:00:05]} Re4+ {[%emt 0:03:10]} 29. Kf1 {[%emt 0:00:06]} Rxd1+ {[%emt 0:00:23]} 30. Rxd1 {[%emt 0:00:04]} h5 {[%emt 0:00:09]} 31. Ra1 {[%emt 0:06:05]} Kg8 {[%emt 0:01:47]} 1/2-1/2

[Event "AUT-ch 2018"]
[Site "Vienna"]
[Date "2018.07.24"]
[Round "4"]
[White "Zimmermann, Heinz"]
[Black "Ly, Dominik"]
[Result "0-1"]
[ECO "A04"]
[WhiteElo "2162"]
[BlackElo "2217"]
[Annotator "NA"]
[PlyCount "70"]
[EventDate "2018.07.22"]
[EventType "swiss"]
[EventCountry "AUT"]
[SourceTitle "playchess.com"]
[Source "ChessBase"]
[SourceQuality "1"]
[TimeControl "40/5400+30:1800+30"]

1. Nf3 {[%emt 0:00:00]} c5 {[%emt 0:00:11]} 2. g3 {[%emt 0:00:00]} Nc6 {[%emt 0:01:15]} 3. Bg2 {[%emt 0:00:14]} g6 {[%emt 0:00:16]} 4. c3 {[%emt 0:00:49]} e5 {[%emt 0:04:56]} 5. e4 {[%emt 0:00:26]} Bg7 {[%emt 0:00:17]} 6. O-O {[%emt 0:01:28]} Nge7 {[%emt 0:00:24]} 7. d3 {[%emt 0:03:25]} O-O {[%emt 0:04:29]} 8. Be3 {[%emt 0:02:39]} b6 {[%emt 0:06:42]} 9. d4 {[%emt 0:09:41]} d6 {[%emt 0:03:03]} 10. dxe5 {[%emt 0:08:42]} dxe5 {[%emt 0:00:10]} 11. Qc2 {[%emt 0:03:06]} h6 {[%emt 0:02:24]} 12. Rd1 {[%emt 0:01:44]} Qc7 {[%emt 0:00:20]} 13. Na3 {[%emt 0:05:14]} a6 {[%emt 0:00:25]} 14. b4 {[%emt 0:05:34]} Na7 {[%emt 0:07:08]} 15. bxc5 {[%emt 0:01:40]} bxc5 {[%emt 0:00:07]} 16. Nc4 {[%emt 0:02:24]} Be6 {[%emt 0:03:10]} 17. Nfd2 {[%emt 0:02:16]} Rfd8 {[%emt 0:02:33]} 18. Bf1 {[%emt 0:00:33]} f5 {[%emt 0:29:33]} 19. f3 {[%emt 0:01:38]} fxe4 {[%emt 0:00:34]} 20. fxe4 {[%emt 0:03:35]} Nec6 {[%emt 0:10:33]} 21. Bxc5 {[%emt 0:10:15]} Rab8 {[%emt 0:01:24]} 22. Nb3 {[%emt 0:04:24]} Bf8 {[%emt 0:02:13]} 23. Rxd8 {[%emt 0:04:12]} Qxd8 {[%emt 0:03:59]} 24. Rd1 {[%emt 0:02:47]} Qc7 {[%emt 0:00:18]} 25. Bf2 {[%emt 0:06:24]} Nb5 {[%emt 0:05:22]} 26. Nc5 {[%emt 0:03:40]} Bxc5 {[%emt 0:01:51]} 27. Bxc5 {[%emt 0:00:07]} Na5 {[%emt 0:00:34]} 28. Bd6 {[%emt 0:07:55]} Nxd6 {[%emt 0:01:56]} 29. Rxd6 {[%emt 0:04:09]} Bxc4 {[%emt 0:00:43]} 30. Bxc4+ {[%emt 0:04:16]} Nxc4 {[%emt 0:00:11]} 31. Rxg6+ {[%emt 0:00:15]} Kh7 {[%emt 0:00:07]} 32. Rxa6 Qc5+ {[%emt 0:00:17]} 33. Kh1 {[%emt 0:00:44]} Qe3 {[%emt 0:00:42]} 34. Qd1 {[%emt 0:01:08]} Qxe4+ {[%emt 0:00:09]} 35. Kg1 {[%emt 0:00:07]} Rb1 {[%emt 0:00:06]} 0-1